[Event "*** Titled Tuesday Blitz"]
[Site "Chess.com"]
[Date "2021.04.06"]
[Round "7"]
[White "JQuiroga18"]
[Black "Susik_Gaboyan"]
[Result "1-0"]
[WhiteElo "2423"]
[BlackElo "2261"]
[TimeControl "180+1"]
[EndTime "11:19:57 PDT"]
[Termination "JQuiroga18 won on time"]

1. e4 {[%clk 0:03:00.9]} 1... c5 {[%clk 0:02:58.7]} 2. Nf3 {[%clk 0:02:59]} 2...
Nc6 {[%clk 0:02:59.3]} 3. d4 {[%clk 0:02:56.2]} 3... cxd4 {[%clk 0:03:00.2]} 4.
Nxd4 {[%clk 0:02:56.7]} 4... Nf6 {[%clk 0:03:00.7]} 5. Nc3 {[%clk 0:02:56.6]}
5... e5 {[%clk 0:03:01.4]} 6. Ndb5 {[%clk 0:02:55.1]} 6... d6 {[%clk 0:02:57.4]}
7. Bg5 {[%clk 0:02:53.5]} 7... a6 {[%clk 0:02:57.5]} 8. Na3 {[%clk 0:02:53.9]}
8... b5 {[%clk 0:02:54.1]} 9. Nd5 {[%clk 0:02:54]} 9... Be7 {[%clk 0:02:54.7]}
10. Bxf6 {[%clk 0:02:54.2]} 10... Bxf6 {[%clk 0:02:55.6]} 11. c3 {[%clk
0:02:46.9]} 11... Bg5 {[%clk 0:02:53.5]} 12. Nc2 {[%clk 0:02:44.4]} 12... Ne7
{[%clk 0:02:50.4]} 13. a4 {[%clk 0:02:40.9]} 13... bxa4 {[%clk 0:02:41.8]} 14.
Rxa4 {[%clk 0:02:38.9]} 14... Nxd5 {[%clk 0:02:29.2]} 15. Qxd5 {[%clk
0:02:37.9]} 15... Be6 {[%clk 0:02:28.2]} 16. Qb7 {[%clk 0:02:21.9]} 16... O-O
{[%clk 0:02:20.5]} 17. Nb4 {[%clk 0:02:15.9]} 17... a5 {[%clk 0:02:15.8]} 18.
Nc6 {[%clk 0:02:14.9]} 18... Qd7 {[%clk 0:02:04.3]} 19. Qxd7 {[%clk 0:01:46.9]}
19... Bxd7 {[%clk 0:02:05.2]} 20. Bb5 {[%clk 0:01:47.2]} 20... Bxc6 {[%clk
0:01:38.3]} 21. Bxc6 {[%clk 0:01:46.8]} 21... Rab8 {[%clk 0:01:39]} 22. b4
{[%clk 0:01:39.3]} 22... axb4 {[%clk 0:01:39.9]} 23. cxb4 {[%clk 0:01:39.7]}
23... f5 {[%clk 0:01:37.9]} 24. O-O {[%clk 0:01:34.8]} 24... fxe4 {[%clk
0:01:34.9]} 25. Bxe4 {[%clk 0:01:34.3]} 25... Bd8 {[%clk 0:01:27]} 26. Bc6
{[%clk 0:01:33.3]} 26... Bb6 {[%clk 0:01:25.8]} 27. b5 {[%clk 0:01:32.4]} 27...
Rbd8 {[%clk 0:00:55.7]} 28. Bd5+ {[%clk 0:01:29.2]} 28... Kh8 {[%clk 0:00:51.2]}
29. Ra6 {[%clk 0:01:27.1]} 29... Rb8 {[%clk 0:00:48.6]} 30. g3 {[%clk
0:01:24.7]} 30... Bc5 {[%clk 0:00:39.3]} 31. Bc6 {[%clk 0:01:23]} 31... d5
{[%clk 0:00:35.4]} 32. Bxd5 {[%clk 0:01:14.6]} 32... Rxb5 {[%clk 0:00:35]} 33.
Ra2 {[%clk 0:01:11.6]} 33... Bd4 {[%clk 0:00:26.3]} 34. Be4 {[%clk 0:01:08.8]}
34... Rb2 {[%clk 0:00:22.6]} 35. Rxb2 {[%clk 0:01:08.1]} 35... Bxb2 {[%clk
0:00:23.5]} 36. Kg2 {[%clk 0:01:08.1]} 36... Bd4 {[%clk 0:00:24.4]} 37. f3
{[%clk 0:01:06.1]} 37... Rb8 {[%clk 0:00:24.9]} 38. Rc1 {[%clk 0:01:03.6]} 38...
g6 {[%clk 0:00:19.6]} 39. Rc7 {[%clk 0:01:03.1]} 39... Rf8 {[%clk 0:00:11.5]}
40. h4 {[%clk 0:01:02.5]} 40... Rd8 {[%clk 0:00:12.1]} 41. Kh3 {[%clk
0:01:01.9]} 41... Bb6 {[%clk 0:00:10.6]} 42. Rb7 {[%clk 0:00:59.4]} 42... Bd4
{[%clk 0:00:10.6]} 43. Kg4 {[%clk 0:00:59]} 43... Kg8 {[%clk 0:00:09.5]} 44. Kg5
{[%clk 0:00:58.8]} 44... Be3+ {[%clk 0:00:08.8]} 45. Kf6 {[%clk 0:00:57.7]}
45... Bd4 {[%clk 0:00:05.4]} 46. Rg7+ {[%clk 0:00:51.7]} 46... Kh8 {[%clk
0:00:04.7]} 47. Re7 {[%clk 0:00:50.7]} 47... Rf8+ {[%clk 0:00:04.7]} 48. Kg5
{[%clk 0:00:50.3]} 48... Be3+ {[%clk 0:00:04.1]} 49. Kg4 {[%clk 0:00:50.5]}
49... Kg8 {[%clk 0:00:04.4]} 50. h5 {[%clk 0:00:49.7]} 50... gxh5+ {[%clk
0:00:05.3]} 51. Kxh5 {[%clk 0:00:48.4]} 51... h6 {[%clk 0:00:03.4]} 52. Rxe5
{[%clk 0:00:47]} 52... Bd4 {[%clk 0:00:02.7]} 53. Re6 {[%clk 0:00:45.8]} 53...
Rf6 {[%clk 0:00:02.2]} 54. Rxf6 {[%clk 0:00:44.1]} 54... Bxf6 {[%clk 0:00:03.1]}
55. Kxh6 {[%clk 0:00:44.4]} 55... Be5 {[%clk 0:00:03.4]} 56. g4 {[%clk
0:00:42.6]} 56... Bf4+ {[%clk 0:00:03.6]} 57. g5 {[%clk 0:00:40.6]} 57... Be3
{[%clk 0:00:04.5]} 58. Kg6 {[%clk 0:00:37.2]} 58... Bf4 {[%clk 0:00:04]} 59. Kf5
{[%clk 0:00:36.3]} 59... Bc1 {[%clk 0:00:03.4]} 60. Kg4 {[%clk 0:00:34.6]} 60...
Kg7 {[%clk 0:00:03.5]} 61. f4 {[%clk 0:00:34.8]} 61... Bd2 {[%clk 0:00:02.9]}
62. f5 {[%clk 0:00:34.9]} 62... Bc3 {[%clk 0:00:03.6]} 63. Kf3 {[%clk 0:00:34]}
63... Kf7 {[%clk 0:00:01.7]} 64. Kf4 {[%clk 0:00:31.2]} 64... Bd2+ {[%clk
0:00:01.6]} 65. Kg4 {[%clk 0:00:30.5]} 65... Bc3 {[%clk 0:00:02.1]} 66. Kh5
{[%clk 0:00:29.7]} 66... Bb2 {[%clk 0:00:02.1]} 67. Kh6 {[%clk 0:00:27.5]} 67...
Bc1 {[%clk 0:00:02.7]} 68. Bd5+ {[%clk 0:00:27.2]} 68... Kf8 {[%clk 0:00:01.6]}
69. Kg6 {[%clk 0:00:26.3]} 69... Bb2 {[%clk 0:00:02]} 70. f6 {[%clk 0:00:25.9]}
70... Bc1 {[%clk 0:00:02.3]} 71. Kf5 {[%clk 0:00:25.3]} 71... Bd2 {[%clk
0:00:02]} 72. g6 {[%clk 0:00:25.2]} 72... Bh6 {[%clk 0:00:02.7]} 73. Be6 {[%clk
0:00:22]} 1-0

[Event "*** Titled Tuesday Blitz"]
[Site "Chess.com"]
[Date "2021.04.06"]
[Round "7"]
[White "Caterpiller35"]
[Black "Arseniy_Nesterov"]
[Result "1/2-1/2"]
[WhiteElo "2458"]
[BlackElo "2743"]
[TimeControl "180+1"]
[EndTime "11:20:18 PDT"]
[Termination "Game drawn - insufficient material"]

1. d4 {[%clk 0:02:59.1]} 1... d6 {[%clk 0:02:59.9]} 2. e4 {[%clk 0:02:58.5]}
2... Nf6 {[%clk 0:02:58.2]} 3. Nc3 {[%clk 0:02:58.9]} 3... e5 {[%clk 0:02:58.5]}
4. Nf3 {[%clk 0:02:58.1]} 4... Nbd7 {[%clk 0:02:58.3]} 5. Bc4 {[%clk 0:02:57.5]}
5... Be7 {[%clk 0:02:58]} 6. O-O {[%clk 0:02:56.9]} 6... O-O {[%clk 0:02:57.9]}
7. Qe2 {[%clk 0:02:57.1]} 7... c6 {[%clk 0:02:55.5]} 8. a4 {[%clk 0:02:57]} 8...
b6 {[%clk 0:02:51.5]} 9. Rd1 {[%clk 0:02:55]} 9... Qc7 {[%clk 0:02:51.4]} 10. d5
{[%clk 0:02:52.5]} 10... Bb7 {[%clk 0:02:50.8]} 11. Bg5 {[%clk 0:02:49.7]} 11...
h6 {[%clk 0:02:32.5]} 12. Bxf6 {[%clk 0:02:46.5]} 12... Nxf6 {[%clk 0:02:33.4]}
13. dxc6 {[%clk 0:02:44.7]} 13... Bxc6 {[%clk 0:02:33.3]} 14. Nd5 {[%clk
0:02:43.1]} 14... Bxd5 {[%clk 0:02:26.9]} 15. Bxd5 {[%clk 0:02:44]} 15... Nxd5
{[%clk 0:02:22.5]} 16. Rxd5 {[%clk 0:02:44.9]} 16... Rac8 {[%clk 0:02:20.9]} 17.
c3 {[%clk 0:02:42.3]} 17... Qc4 {[%clk 0:02:13.8]} 18. Qxc4 {[%clk 0:02:38.7]}
18... Rxc4 {[%clk 0:02:14.7]} 19. Nd2 {[%clk 0:02:33.6]} 19... Rc6 {[%clk
0:02:14.1]} 20. f3 {[%clk 0:02:28.8]} 20... Rfc8 {[%clk 0:02:07.5]} 21. Rd1
{[%clk 0:02:23.6]} 21... g6 {[%clk 0:02:06]} 22. c4 {[%clk 0:01:55.2]} 22... Kg7
{[%clk 0:02:03.9]} 23. b3 {[%clk 0:01:55.3]} 23... Kf6 {[%clk 0:02:03.9]} 24.
Nb1 {[%clk 0:01:54.8]} 24... Ke6 {[%clk 0:02:04.2]} 25. Nc3 {[%clk 0:01:54.7]}
25... a6 {[%clk 0:02:03.5]} 26. Kf2 {[%clk 0:01:52.6]} 26... f5 {[%clk
0:02:02.7]} 27. Ke3 {[%clk 0:01:50.6]} 27... Bg5+ {[%clk 0:02:01.8]} 28. Ke2
{[%clk 0:01:50.8]} 28... h5 {[%clk 0:02:00]} 29. g3 {[%clk 0:01:36.9]} 29... h4
{[%clk 0:01:56.4]} 30. exf5+ {[%clk 0:00:58]} 30... gxf5 {[%clk 0:01:55.3]} 31.
g4 {[%clk 0:00:58.5]} 31... Be7 {[%clk 0:01:38.7]} 32. gxf5+ {[%clk 0:00:43]}
32... Kxf5 {[%clk 0:01:39.6]} 33. Rg1 {[%clk 0:00:43.1]} 33... Rh8 {[%clk
0:01:27.3]} 34. Ne4 {[%clk 0:00:41.7]} 34... Rh6 {[%clk 0:01:05.5]} 35. Rg7
{[%clk 0:00:40.3]} 35... Ke6 {[%clk 0:01:01]} 36. a5 {[%clk 0:00:28.9]} 36...
bxa5 {[%clk 0:00:51.6]} 37. Rxa5 {[%clk 0:00:27.3]} 37... Rb6 {[%clk 0:00:51.8]}
38. Nc3 {[%clk 0:00:21]} 38... Rxb3 {[%clk 0:00:44.1]} 39. Nd5 {[%clk
0:00:20.9]} 39... Bf8 {[%clk 0:00:43.5]} 40. Rg8 {[%clk 0:00:16.2]} 40... Kf7
{[%clk 0:00:42.8]} 41. Rg4 {[%clk 0:00:15]} 41... Rb2+ {[%clk 0:00:42.4]} 42.
Kd3 {[%clk 0:00:14.6]} 42... Rxh2 {[%clk 0:00:43]} 43. Rxa6 {[%clk 0:00:14.8]}
43... Rf2 {[%clk 0:00:37.2]} 44. Ra7+ {[%clk 0:00:14.3]} 44... Ke6 {[%clk
0:00:33.9]} 45. Ke4 {[%clk 0:00:14.5]} 45... Re2+ {[%clk 0:00:27.8]} 46. Kd3
{[%clk 0:00:14.6]} 46... Re1 {[%clk 0:00:26.9]} 47. Rg8 {[%clk 0:00:13.9]} 47...
h3 {[%clk 0:00:17]} 48. Rxf8 {[%clk 0:00:13.4]} 48... Rd1+ {[%clk 0:00:17.3]}
49. Ke4 {[%clk 0:00:13.1]} 49... Re1+ {[%clk 0:00:11.4]} 50. Kd3 {[%clk
0:00:11.9]} 50... Rd1+ {[%clk 0:00:09.1]} 51. Ke2 {[%clk 0:00:11.7]} 51... Rxd5
{[%clk 0:00:03.5]} 52. cxd5+ {[%clk 0:00:12.6]} 52... Kxd5 {[%clk 0:00:03.5]}
53. Ra1 {[%clk 0:00:12.8]} 53... Ke6 {[%clk 0:00:03.7]} 54. Rh1 {[%clk
0:00:12.8]} 54... d5 {[%clk 0:00:04.6]} 55. Re8+ {[%clk 0:00:12.6]} 55... Kf5
{[%clk 0:00:04.8]} 56. Rd8 {[%clk 0:00:12.7]} 56... d4 {[%clk 0:00:04.4]} 57.
Kf2 {[%clk 0:00:12.8]} 57... Rh7 {[%clk 0:00:03.3]} 58. Kg3 {[%clk 0:00:12.8]}
58... Rg7+ {[%clk 0:00:03.3]} 59. Kxh3 {[%clk 0:00:12.7]} 59... Kf4 {[%clk
0:00:04.2]} 60. Rf8+ {[%clk 0:00:10.8]} 60... Ke3 {[%clk 0:00:04]} 61. Re1+
{[%clk 0:00:10.6]} 61... Kf2 {[%clk 0:00:04.1]} 62. Rxe5 {[%clk 0:00:10.1]}
62... Rg3+ {[%clk 0:00:03.8]} 63. Kh4 {[%clk 0:00:10.1]} 63... Rxf3 {[%clk
0:00:04.7]} 64. Rd8 {[%clk 0:00:06.4]} 64... d3 {[%clk 0:00:04.8]} 65. Red5
{[%clk 0:00:06.6]} 65... Ke2 {[%clk 0:00:04.7]} 66. Kg4 {[%clk 0:00:07.1]} 66...
Re3 {[%clk 0:00:04.3]} 67. Rd4 {[%clk 0:00:06.4]} 67... Rf3 {[%clk 0:00:02.8]}
68. Re8+ {[%clk 0:00:05.8]} 68... Re3 {[%clk 0:00:03.3]} 69. Rde4 {[%clk
0:00:04.6]} 69... Rxe4+ {[%clk 0:00:02.3]} 70. Rxe4+ {[%clk 0:00:05.5]} 70...
Kf2 {[%clk 0:00:03.2]} 71. Kf4 {[%clk 0:00:05]} 71... d2 {[%clk 0:00:03.3]} 72.
Rd4 {[%clk 0:00:05.3]} 72... Ke2 {[%clk 0:00:04.2]} 73. Rxd2+ {[%clk 0:00:04.3]}
73... Kxd2 {[%clk 0:00:04.3]} 1/2-1/2

[Event "*** Titled Tuesday Blitz"]
[Site "Chess.com"]
[Date "2021.04.06"]
[Round "7"]
[White "TedBelanoff"]
[Black "TC2304"]
[Result "0-1"]
[WhiteElo "2111"]
[BlackElo "2284"]
[TimeControl "180+1"]
[EndTime "11:21:00 PDT"]
[Termination "TC2304 won on time"]

1. e4 {[%clk 0:02:54.7]} 1... Nc6 {[%clk 0:02:59.6]} 2. d4 {[%clk 0:02:53.1]}
2... e5 {[%clk 0:02:59.8]} 3. Nf3 {[%clk 0:02:52]} 3... exd4 {[%clk 0:02:53.7]}
4. Nxd4 {[%clk 0:02:52.9]} 4... Bc5 {[%clk 0:02:52.2]} 5. Nxc6 {[%clk
0:02:44.1]} 5... Qf6 {[%clk 0:02:51.5]} 6. Qf3 {[%clk 0:02:41.2]} 6... Qxf3
{[%clk 0:02:39.4]} 7. gxf3 {[%clk 0:02:40.8]} 7... dxc6 {[%clk 0:02:39.3]} 8.
Nc3 {[%clk 0:02:41.4]} 8... Be6 {[%clk 0:02:32.3]} 9. Be3 {[%clk 0:02:41.1]}
9... Bxe3 {[%clk 0:02:29.6]} 10. fxe3 {[%clk 0:02:41.4]} 10... O-O-O {[%clk
0:02:29.9]} 11. Rd1 {[%clk 0:02:39.7]} 11... Ne7 {[%clk 0:02:27.8]} 12. b3
{[%clk 0:02:36.7]} 12... Ng6 {[%clk 0:02:25.9]} 13. f4 {[%clk 0:02:32.2]} 13...
Bg4 {[%clk 0:02:23.2]} 14. Rxd8+ {[%clk 0:02:30.9]} 14... Rxd8 {[%clk
0:02:22.7]} 15. Be2 {[%clk 0:02:31.5]} 15... Bxe2 {[%clk 0:02:17.3]} 16. Kxe2
{[%clk 0:02:32.4]} 16... f6 {[%clk 0:02:08.3]} 17. Rg1 {[%clk 0:02:31.2]} 17...
Rd7 {[%clk 0:02:08.3]} 18. Nd1 {[%clk 0:02:30.2]} 18... Re7 {[%clk 0:02:05.3]}
19. Nf2 {[%clk 0:02:29.8]} 19... b6 {[%clk 0:01:53.6]} 20. c4 {[%clk 0:02:27.5]}
20... c5 {[%clk 0:01:50.3]} 21. Rd1 {[%clk 0:02:24.2]} 21... Rd7 {[%clk
0:01:48.9]} 22. Rxd7 {[%clk 0:02:22.6]} 22... Kxd7 {[%clk 0:01:49.8]} 23. Kf3
{[%clk 0:02:22.6]} 23... Kd6 {[%clk 0:01:42.2]} 24. Ng4 {[%clk 0:02:17.2]} 24...
a6 {[%clk 0:01:31.9]} 25. Kg3 {[%clk 0:02:16.5]} 25... b5 {[%clk 0:01:30.1]} 26.
Nf2 {[%clk 0:02:14.8]} 26... Ne7 {[%clk 0:01:24.1]} 27. Nd3 {[%clk 0:02:13.6]}
27... Nc6 {[%clk 0:01:22.3]} 28. f5 {[%clk 0:02:08.6]} 28... bxc4 {[%clk
0:01:16.6]} 29. bxc4 {[%clk 0:02:06.5]} 29... Nb4 {[%clk 0:01:12]} 30. e5+
{[%clk 0:01:46.8]} 30... fxe5 {[%clk 0:01:11]} 31. Nf2 {[%clk 0:01:46.3]} 31...
Nc2 {[%clk 0:01:03.4]} 32. Ne4+ {[%clk 0:01:44.9]} 32... Kc6 {[%clk 0:01:03.5]}
33. Kf3 {[%clk 0:01:43.7]} 33... Na3 {[%clk 0:01:03.9]} 34. Nd2 {[%clk
0:01:40.7]} 34... Kd6 {[%clk 0:00:57.1]} 35. Ke4 {[%clk 0:01:40.7]} 35... Nc2
{[%clk 0:00:55]} 36. Nf3 {[%clk 0:01:33.8]} 36... Nb4 {[%clk 0:00:46.1]} 37. a4
{[%clk 0:01:33.7]} 37... Na2 {[%clk 0:00:41]} 38. Nxe5 {[%clk 0:01:25.4]} 38...
Nc3+ {[%clk 0:00:37.3]} 39. Kf4 {[%clk 0:01:25.7]} 39... Nxa4 {[%clk 0:00:30.9]}
40. Nf7+ {[%clk 0:01:24.1]} 40... Ke7 {[%clk 0:00:31.2]} 41. Ng5 {[%clk
0:01:22.9]} 41... Nb2 {[%clk 0:00:30.4]} 42. Ne4 {[%clk 0:01:18.9]} 42... Nd3+
{[%clk 0:00:25.8]} 43. Kg5 {[%clk 0:01:16.6]} 43... a5 {[%clk 0:00:26.1]} 44.
Nc3 {[%clk 0:01:16.8]} 44... Nb2 {[%clk 0:00:26]} 45. Nd5+ {[%clk 0:01:15.6]}
45... Kd6 {[%clk 0:00:24.9]} 46. Nc3 {[%clk 0:00:57.3]} 46... Nxc4 {[%clk
0:00:23.6]} 47. e4 {[%clk 0:00:57.8]} 47... Ke5 {[%clk 0:00:19.6]} 48. h4 {[%clk
0:00:56.3]} 48... Nd6 {[%clk 0:00:18.8]} 49. Kg4 {[%clk 0:00:48.5]} 49... Nxe4
{[%clk 0:00:18.3]} 50. Nb5 {[%clk 0:00:48.5]} 50... c4 {[%clk 0:00:16.6]} 51.
Na3 {[%clk 0:00:45.2]} 51... c3 {[%clk 0:00:15.4]} 52. Nc4+ {[%clk 0:00:45.3]}
52... Kd4 {[%clk 0:00:14.2]} 53. Nxa5 {[%clk 0:00:45.6]} 53... c2 {[%clk
0:00:13.2]} 54. Nb3+ {[%clk 0:00:45.6]} 54... Kc3 {[%clk 0:00:13.8]} 55. Nc1
{[%clk 0:00:45.8]} 55... Kd2 {[%clk 0:00:12.4]} 56. Nb3+ {[%clk 0:00:46]} 56...
Kc3 {[%clk 0:00:11.7]} 57. Nc1 {[%clk 0:00:44.9]} 57... Nf2+ {[%clk 0:00:12]}
58. Kg5 {[%clk 0:00:42]} 58... Nd3 {[%clk 0:00:12.9]} 59. Ne2+ {[%clk
0:00:41.6]} 59... Kd2 {[%clk 0:00:12.3]} 60. Nd4 {[%clk 0:00:42.2]} 60... Ke3
{[%clk 0:00:09.9]} 61. Nxc2+ {[%clk 0:00:41.9]} 61... Ke4 {[%clk 0:00:08.9]} 62.
h5 {[%clk 0:00:38.5]} 62... Ne5 {[%clk 0:00:08]} 63. Ne1 {[%clk 0:00:29.3]}
63... h6+ {[%clk 0:00:08.2]} 64. Kh4 {[%clk 0:00:24.3]} 64... Kxf5 {[%clk
0:00:09.1]} 65. Ng2 {[%clk 0:00:24.6]} 65... c5 {[%clk 0:00:08.3]} 66. Ne3+
{[%clk 0:00:25.1]} 66... Ke4 {[%clk 0:00:08.7]} 67. Nc2 {[%clk 0:00:23.3]} 67...
c4 {[%clk 0:00:08.9]} 68. Kg3 {[%clk 0:00:16.4]} 68... c3 {[%clk 0:00:09.1]} 69.
Kf2 {[%clk 0:00:15.6]} 69... Nf3 {[%clk 0:00:08.7]} 70. Nb4 {[%clk 0:00:13.1]}
70... Nd4 {[%clk 0:00:08.8]} 71. Ke1 {[%clk 0:00:12.8]} 71... Kf5 {[%clk
0:00:07.2]} 72. Nd5 {[%clk 0:00:12.5]} 72... c2 {[%clk 0:00:06.6]} 73. Kd2
{[%clk 0:00:12.7]} 73... Kg5 {[%clk 0:00:06.6]} 74. Nc3 {[%clk 0:00:06.6]} 74...
Kxh5 {[%clk 0:00:06.5]} 75. Ne4 {[%clk 0:00:06.9]} 75... Kg4 {[%clk 0:00:05.1]}
76. Nf2+ {[%clk 0:00:07]} 76... Kf3 {[%clk 0:00:05.5]} 77. Nd3 {[%clk
0:00:06.9]} 77... g5 {[%clk 0:00:05.7]} 78. Ne5+ {[%clk 0:00:07.4]} 78... Kf4
{[%clk 0:00:05.7]} 79. Ng6+ {[%clk 0:00:07.5]} 79... Kf5 {[%clk 0:00:05.8]} 80.
Ne7+ {[%clk 0:00:07.1]} 80... Kg4 {[%clk 0:00:06.5]} 81. Nd5 {[%clk 0:00:05.4]}
81... h5 {[%clk 0:00:07]} 82. Nf6+ {[%clk 0:00:05.6]} 82... Kf3 {[%clk
0:00:07.8]} 83. Nxh5 {[%clk 0:00:05.7]} 83... g4 {[%clk 0:00:08.3]} 84. Kc1
{[%clk 0:00:03.3]} 84... g3 {[%clk 0:00:08.3]} 85. Nxg3 {[%clk 0:00:02.8]} 85...
Kxg3 {[%clk 0:00:09.2]} 86. Kd2 {[%clk 0:00:03.4]} 86... Kf3 {[%clk 0:00:10]}
87. Kc1 {[%clk 0:00:03.5]} 87... Ke4 {[%clk 0:00:10.4]} 88. Kd2 {[%clk
0:00:04.3]} 88... Kf3 {[%clk 0:00:10.2]} 89. Kc1 {[%clk 0:00:05.2]} 89... Ke3
{[%clk 0:00:10.5]} 90. Kb2 {[%clk 0:00:03.4]} 90... Kd2 {[%clk 0:00:10.8]} 91.
Ka2 {[%clk 0:00:03.7]} 91... Nb5 {[%clk 0:00:08.9]} 92. Kb3 {[%clk 0:00:03.1]}
92... c1=Q {[%clk 0:00:08.9]} 93. Ka2 {[%clk 0:00:04]} 93... Nc3+ {[%clk
0:00:08.3]} 94. Kb3 {[%clk 0:00:03.7]} 94... Qb1+ {[%clk 0:00:08.7]} 95. Kc4
{[%clk 0:00:04.3]} 95... Qd3+ {[%clk 0:00:08.8]} 96. Kb3 {[%clk 0:00:04.6]}
96... Nd5+ {[%clk 0:00:08.7]} 0-1